Cogmind - Beta 17.1 @@@ ROGUE MODE // 2026.09.12 @ 17:00:14 Player: fai Result: Destroyed by OJ-OGH(R) with Subdweller Machine Gun Performance ------------- Evolutions (0) 0 Regions Visited (2) 400 Robots Destroyed (21) 105 Value Destroyed (425) 425 Prototype IDs (1) 20 Alien Tech Used (0) 0 Bonus (5100) 5100 TOTAL SCORE: 6050 Bonus ------- Prayed to X0-1V1 5000 Major X0-1V1 Interference 100 Cogmind --------- Core Integrity 0/250 Matter 300/300 Energy 184/250 System Corruption 2% Temperature Cool (0) Movement Rolling (155) Ox5 Location -10/Subcaves Parts ------- > --- POWER (1) -------- Ion Engine > --- PROPULSION (2) --- Wheel > --- UTILITY (2) ------ High-capacity Storage Unit X0-1V1's Piety Tracker > --- WEAPON (2) ------- Subdweller Beam Cannon > --- INVENTORY (20) --- Wheel Improved Heat Sink High-capacity Storage Unit Machine Analyzer Improved Terrain Scanner Seismic Detector Targeting Computer EM Pulse Gun Datajack Peak State ------------ > --- POWER ------------ Light Ion Engine > --- PROPULSION ------- Wheel Wheel > --- UTILITY ---------- High-capacity Storage Unit X0-1V1's Piety Tracker > --- WEAPON ----------- Medium Laser Particle Gun > --- INVENTORY -------- Ion Engine Wheel Wheel Improved Heat Sink High-capacity Storage Unit Improved Terrain Scanner Seismic Detector Targeting Computer EM Pulse Gun Datajack [Rating: 21] Favorites ----------- Power Light Ion Engine Engine Light Ion Engine Propulsion Wheel Wheel Wheel Utility High-capacity Storage Unit Device X0-1V1's Piety Tracker Storage High-capacity Storage Unit Weapon Particle Gun Energy Gun Particle Gun Energy Cannon Subdweller Beam Cannon Ballistic Gun Assault Rifle Build | -11 -10 -10 ------- Run | Yrd Mat Sub Slots Evolved . | . . . Power . | . . . Propulsion . | . . . Utility . | . . . Weapon . | . . . Parts Attached 17 | 8 5 4 Power 3 | 1 1 1 Engine 3 | 1 1 1 Core . | . . . Reactor . | . . . Propulsion 4 | 2 . 2 Treads . | . . . Leg . | . . . Wheel 4 | 2 . 2 Hover . | . . . Flight . | . . . Utility 5 | 2 3 . Device 3 | 1 2 . Storage 2 | 1 1 . Processor . | . . . Hackware . | . . . Protection . | . . . Artifact . | . . . Weapon 5 | 3 1 1 Energy Gun 3 | 2 1 . Energy Cannon 1 | . . 1 Ballistic Gun 1 | 1 . . Ballistic Cannon . | . . . Launcher . | . . . Special Weapon . | . . . Impact Weapon . | . . . Slashing Weapon . | . . . Piercing Weapon . | . . . Special Melee Weapon . | . . . Unidentified Prototypes 1 | . 1 . Parts Lost 7 | . 2 5 Power 2 | . 1 1 Propulsion 2 | . . 2 Utility . | . . . Weapon 3 | . 1 2 Highest Loss Streak 2 | . 1 2 To Critical Strikes . | . . . Average Backups 8 | 1 7 10 Power . | . . . Propulsion 1 | . 2 1 Utility 3 | . 3 5 Weapon 1 | . 1 1 Tool/Special . | . . . Unused Backups 5 | . . 5 Power . | . . . Propulsion . | . . . Utility 4 | . . 4 Weapon . | . . . Tool/Special 1 | . . 1 Average Slot Usage (%) 91 | . 97 84 Engine 13 | . 12 13 Wheel 27 | . 28 26 Device 14 | . 14 14 Storage 14 | . 14 14 Energy Gun 16 | . 20 10 Energy Cannon 2 | . . 5 Ballistic Gun 3 | . 6 . Peak Build Rating 21 | 7 21 21 Average Rating 12 | 5 9 19 On Entrance 9 | . 7 21 Avg Prop Armor Cover (%) . | . . . Naked Turns . | . . . Heaviest Build 54 | 15 49 54 Greatest Support 20 | 20 20 20 Greatest Overweight (x) 5 | . 2 5 Average Overweight (x) 1 | . 1 2 Largest Inventory Capacity 20 | 8 20 20 Average Capacity 16 | 7 16 20 Most Carried 11 | 4 10 11 Average Carried 8 | 1 8 10 Final Capacity 20 | 8 20 20 Final Carried 10 | 4 10 9 Class Distribution -------------------- 100% | Mutant Dominant Class ---------------- Mutant | -10/Materials Mutant | -10/Subcaves Resources | -11 -10 -10 ----------- Run | Yrd Mat Sub Matter Collected 467 | 227 197 43 Remotely . | . . . Salvage Created 600 | 169 325 106 Parts 36 | 13 17 6 Haulers Intercepted . | . . . Recyclers Shooed . | . . . Parts Field Recycled . | . . . Retrieved Matter . | . . . Parts Self-Destructed 6 | . . 6 Prevented . | . . . Parts Restored . | . . . Kills | -11 -10 -10 ------- Run | Yrd Mat Sub Combat Hostiles Destroyed 11 | . 7 4 Guns 7 | . 7 . Cannons 4 | . . 4 Classes Destroyed 8 | 3 3 2 Worker 2 | 2 . . Tunneler 3 | 3 . . Recycler 1 | 1 . . Operator 1 | . 1 . Turret 2 | . . 2 Watcher 1 | . 1 . Swarmer 4 | . . 4 Grunt 7 | . 7 . Best Kill Streak 4 | 3 2 4 Combat Bots Only 4 | . 2 4 Max Kills in Single Turn 1 | 1 1 1 Gunslinging . | . . . Exploded . | . . . Melee . | . . . Uniques/NPCs Destroyed . | . . . Combat | -11 -10 -10 -------- Run | Yrd Mat Sub Hostile Shots Fired 102 | . 32 70 Missed 24 | . 4 20 Hits 78 | . 28 50 Projectile 78 | . 28 50 Critical Strikes 5 | . 1 4 Damage Taken 926 | 30 370 526 Core 389 | 30 101 258 Absorbed by Shields . | . . . Core Remaining (%) 88 | 88 . . Volleys Fired 71 | 14 33 24 Largest 2 | 2 2 2 Hottest 115 | 90 115 115 Shots Fired 117 | 28 60 29 Gun 98 | 28 60 10 Cannon 19 | . . 19 Launcher . | . . . Special . | . . . Kinetic 33 | 13 20 . Thermal 83 | 14 40 29 Explosive . | . . . Electromagnetic 1 | 1 . . Robot Hit Streak 16 | 9 16 5 Robot Miss Streak 3 | 3 3 2 Penetration Max . | . . . Secondary Targets . | . . . Shots Hit Robots 77 | 18 43 16 Core Hits 28 | 7 17 4 Critical Kills 1 | . . 1 Critical Parts Destroyed . | . . . Critical Strikes 5 | . 3 2 Burn 4 | . 3 1 Meltdown 1 | . . 1 Melee Attacks . | . . . Impact . | . . . Slashing . | . . . Piercing . | . . . Sneak Attacks . | . . . Combat Hostiles . | . . . Follow-up Attacks . | . . . Damage Inflicted 1266 | 257 593 416 Guns 882 | 230 593 59 Cannons 357 | . . 357 Explosions 27 | 27 . . Melee . | . . . Ramming . | . . . Kinetic 348 | 130 218 . Thermal 906 | 115 375 416 Explosive . | . . . Electromagnetic 12 | 12 . . Impact . | . . . Slashing . | . . . Piercing . | . . . Highest Corruption 2 | . 2 2 Average Corruption 1 | . 1 2 Corruption Purged . | . . . Corruption Blocked . | . . . Effects 8 | . 2 6 Message Errors 1 | . . 1 Matter Fused 2 | . 1 1 Heat Flow Errors 1 | . . 1 Energy Discharges 1 | . . 1 Data Loss (minor) 2 | . 1 1 Data Loss (major) 1 | . . 1 Overload Shots . | . . . Overflow Damage 29 | . . 29 Projectiles 29 | . . 29 Explosions . | . . . Melee . | . . . Knockbacks . | . . . Impact . | . . . Kinetic . | . . . Secondary . | . . . Self-Inflicted Damage 30 | 30 . . Shots 1 | 1 . . Rammed . | . . . Targets Rammed . | . . . Kicked . | . . . Crushed . | . . . Highest Temperature 307 | 45 196 307 Average Temperature 54 | 15 62 103 Received Heat Transfer 618 | . 228 390 Siege Activations . | . . . Martial Activations . | . . . Shielding Activations . | . . . Robots Disrupted . | . . . Combat Hostiles . | . . . Robots Corrupted . | . . . Combat Hostiles . | . . . Parts Fried . | . . . Impact Corruptions . | . . . Robots Melted 1 | . . 1 Combat Hostiles . | . . . Parts Melted . | . . . Heat Transferred 2196 | 309 1184 703 Parts Sabotaged . | . . . Parts Stolen . | . . . Parts Stripped . | . . . Power Chain Reactions 1 | 1 . . Alert | -11 -10 -10 ------- Run | Yrd Mat Sub Maximum Alert Level . | . . . Low Security (%) 100 | 100 100 . Level 1 . | . . . Level 2 . | . . . Level 3 . | . . . Level 4 . | . . . Level 5 . | . . . High Security . | . . . Max Security . | . . . Peak Influence 50 | 10 50 . Initial . | . . . Average 12 | 1 15 . Influence Increases 411 | 30 201 180 Destroy 0b10 Robot/C 260 | . 140 120 Destroy 0b10 Robot/NC 40 | 30 10 . Destroy Leader 42 | . 42 . Successful Hack 9 | . 9 . Lose Combat Pursuer 60 | . . 60 Influence Decreases 289 | 30 201 58 Time Decay 249 | 30 191 28 Lost Part 40 | . 10 30 Squads Dispatched 4 | . 4 . Investigation 2 | . 2 . Extermination . | . . . Reinforcement 2 | . 2 . Assault . | . . . Garrison . | . . . Intercept . | . . . Searches Triggered . | . . . Construction Impeded . | . . . Haulers Reinforced . | . . . Active Scanning Responses . | . . . Cargo Convoy Interrupts . | . . . Stealth | -11 -10 -10 --------- Run | Yrd Mat Sub Distress Signals 1 | . 1 . Communications Jammed . | . . . Distress Signals . | . . . Times Spotted 24 | . 13 11 Peak Tracking Total 4 | . 3 4 Tactical Retreats 2 | . . 2 Traps | -11 -10 -10 ------- Run | Yrd Mat Sub Traps Triggered 6 | . 4 2 Indirectly . | . . . Trap Hack Attempts . | . . . Triggered . | . . . Disarmed . | . . . Reprogrammed . | . . . Reused . | . . . Traps Extracted . | . . . Installed . | . . . Triggered . | . . . Machines | -11 -10 -10 ---------- Run | Yrd Mat Sub Machines Disabled 1 | . . 1 Max in Single Turn 1 | . . 1 Machines Repaired . | . . . Machines Dismantled . | . . . Machines Sabotaged . | . . . Overloaded Fab Kills . | . . . Hacking | -11 -10 -10 --------- Run | Yrd Mat Sub Machines Accessed 4 | . 4 . Terminals 4 | . 4 . Fabricators . | . . . Repair Stations . | . . . Recycling Units . | . . . Scanalyzers . | . . . Garrison Access . | . . . Total Hacks 7 | . 7 . Successful 5 | . 5 . Failed 2 | . 2 . Catastrophic 1 | . 1 . Database Lockouts . | . . . Manual 8 | . 8 . Terminals 7 | . 7 . Fabricators . | . . . Repair Stations . | . . . Recycling Units . | . . . Scanalyzers . | . . . Garrison Access . | . . . Terminal Hacks 1 | . 1 . Scanalyzer Index 1 | . 1 . Fabricator Hacks . | . . . Repair Station Hacks . | . . . Recycling Unit Hacks . | . . . Scanalyzer . | . . . Garrison Access Hacks . | . . . Unauthorized Hacks 4 | . 4 . Terminals 4 | . 4 . Botnet 4 | . 4 . Fabricators . | . . . Repair Stations . | . . . Recycling Units . | . . . Scanalyzers . | . . . Garrison Access . | . . . Data Cores Recovered . | . . . Used . | . . . Hacking Detections 2 | . 2 . Full Trace Events . | . . . Feedback Events . | . . . Feedback Blocked . | . . . Robot Schematics Acquired . | . . . Robots Built . | . . . Authchips . | . . . Time . | . . . Total Robot Build Rating . | . . . Part Schematics Acquired . | . . . Parts Built . | . . . Authchips . | . . . Time . | . . . Total Part Build Rating . | . . . Part Studies Acquired . | . . . Parts Repaired . | . . . Time . | . . . Parts Recycled . | . . . Recycled Matter . | . . . Retrieved Matter . | . . . Retrieved Components . | . . . Parts Scanalyzed . | . . . Part Schematics Acquired . | . . . Parts Damaged . | . . . Bothacking | -11 -10 -10 ------------ Run | Yrd Mat Sub Used RIF Installer . | . . . Robots Hacked . | . . . Non-combat . | . . . Combat . | . . . Robot Hacks Applied . | . . . Relay Couplers Released . | . . . Fabnet Peak Effective % . | . . . Robots Rewired . | . . . Allies Hacked . | . . . Hacks Repelled . | . . . Allies | -11 -10 -10 -------- Run | Yrd Mat Sub Total Allies . | . . . Largest Group . | . . . Highest-Rated Group . | . . . Highest-Rated Ally . | . . . Total Orders . | . . . Ally Attacks . | . . . Total Damage . | . . . Kills . | . . . Allies Corrupted . | . . . Allies Melted . | . . . X0-1V1 Amusement Gains 15 | . 15 . Average Entertainment 8 | . 15 8 Bad Acts 2 | . . 2 Intel | -11 -10 -10 ------- Run | Yrd Mat Sub Active Infowar (turns) 356 | 40 316 . Seismic 356 | 40 316 . Robot Analysis Total . | . . . Derelict Logs Recovered . | . . . Drone Launches . | . . . Drone Recoveries . | . . . Exploration | -11 -10 -10 ------------- Run | Yrd Mat Sub Turns Passed 1110 | 123 576 411 Spaces Moved 764 | 83 366 315 Core 4 | 4 . . Treads . | . . . Legs . | . . . Wheels 760 | 79 366 315 Hover . | . . . Flight . | . . . Fastest Speed 50 | 50 80 110 Average Speed 102 | 78 100 110 Slowest Speed 155 | 80 110 155 Overloaded Moves . | . . . Propulsion Burnouts . | . . . Robots Hopped . | . . . Potential Cave-ins . | . . . Cave-ins Triggered . | . . . Exploration Rate (%) 28 | 4 57 23 Regions Visited 2 Branch Regions 1 Pre-discovered Areas . | . . . Known Exits Taken . | . . . Unknown Exits Taken 2 | 1 1 . Scrap Searched . | . . . Spaces Dug . | . . . Terrain Destroyed 2 | . . 2 Melee . | . . . Projectile 2 | . . 2 AOE . | . . . Terrain Rammed . | . . . Walls Destroyed . | . . . Machines Disabled . | . . . Actions | -11 -10 -10 --------- Run | Yrd Mat Sub Total 967 | 108 514 345 Wait 104 | . 103 1 Move 762 | 82 365 315 Hop . | . . . Pick Up 10 | 4 5 1 Fast Attach 10 | 7 2 1 Attach 3 | . 1 2 Detach 1 | . 1 . Swap 5 | 1 3 1 Drop 1 | . 1 . Fire 71 | 14 33 24 Melee . | . . . Ram . | . . . Kick . | . . . Crush . | . . . Escape Stasis . | . . . Rewire . | . . . Trap . | . . . Miscellaneous . | . . . Route ------- -11/Scrapyard -10/Materials (discovered 3 exits: [*Mat x2] / [*Sub]) -10/Subcaves (discovered 1 exit: [*Rec]) History --------- Turn | Location | Event 12 | -11/Scrapyard | Discovered new exit (range 16) 124 | -11/Scrapyard | Entered Materials 259 | -10/Materials | Discovered new exit (range 11) 314 | -10/Materials | Build established: Mutant 459 | -10/Materials | Core integrity fell below 50% 475 | -10/Materials | Discovered new exit (range 10) 677 | -10/Materials | Discovered new exit (range 13) 694 | -10/Materials | Prayed at D.C.S.S. Altar Unit 700 | -10/Materials | Entered Subcaves 701 | -10/Subcaves | Approached by a straggling Scientist 771 | -10/Subcaves | Shifting Twisted Machinery released Piercing Trap 771 | -10/Subcaves | Ambushed by Subdwellers from Twisted Machinery 785 | -10/Subcaves | Core integrity fell below 20% 842 | -10/Subcaves | X0-1V1 rescued you from certain death 948 | -10/Subcaves | Shifting Twisted Machinery released Sub. Beam Cannon 949 | -10/Subcaves | Shifting Twisted Machinery released Flamer 1041 | -10/Subcaves | Shifting Twisted Machinery released Sub. Beam Cannon 1084 | -10/Subcaves | Discovered new exit (range 16) 1111 | -10/Subcaves | Destroyed by OJ-OGH(R) with Subdweller Machine Gun Last Messages --------------- 01064_ Flight Unit fries itself beyond repair. 01065_ S-10 Pest destroyed. 01067_ Acquired 7 matter. 01069_ Lgt. Assault Rifle fries itself beyond repair. 01070_ System corrupted: Heat flow error (+162). 01070_ Lgt. Ion Engine fries itself beyond repair. 01071_ Flight Unit fries itself beyond repair. 01075_ Acquired 9 matter. 01077_ Acquired 11 matter. 01084_ EXIT=FOUND 01088_ Wheel destroyed. 01091_ Autobeam Turret suffers critical hit (Meltdown). 01096_ Machine disabled. 01104_ Destroyed Autobeam. 01106_ Autobeam Turret destroyed. 01111_ X0-1V1 giggles madly! Map ----- +----------------------------------------------------+ | ?????????????????????????????????????????????????? | | ?????????????????????????????????????????????????? | | ?????????????????????????????????????????????????? | | ?????????????????????????????????????????????????? | | ?????????????????????????????????????????????????? | | ?????????????????????????????????????????????????? | | ?????????????????????????????????????????????????? | | ?????????????????????????????????????????????????? | | ?????????????????????????????????????????????????? | | ?????????????????????????????????????????????????? | | ?????????????????????????????????????????????????? | | ?????????????????????????????????????????????????? | | ?????????????????????????????????????????????????? | | ??????????????????????##?????????????????????????? | | ??????????????????#####<#????????????????????????? | | ??????????????????#"""" "????????????????????????? | | ??????????????????#" "????????????????????????? | | ??????????????????#" ????????????????????????? | | ??????????????????? % ?????????? #????????????? | | ???????????????????? ????????? #????????????? | | ????????????????????? ???????? ?????????????? | | ????????????????????## ######## ?????????????? | | ??????????????????### ""??????????????? | | ?????????????# ### "" "?????????????? | | ?????????? R """" ?????????????? | | ######???? @ "" ##?????????????????? | | #???????????####### " ""#?????????????????? | | ##????????????????## """#?????????????????? | | ##???????????????## #?????????????????? | | ##????????####### ####??????????????? | | ####???### ## % ##?????????????? | | ## ##### % #?????????????? | | ###### ## % ## #????????????? | | #???## ;# #???????????? | | ##????# ### #??????????? | | #????# ##?#### ## ??????????? | | ????# #?????# ;##?? ??????????? | | ????# ### ????# ###???? ???????????? | | ???# ##?# ???# ### #??????????????????? | | ???######?? ?## #??# #??????????????????? | | ??????????# #?###???# #??????????????????? | | ??????????# #????????##??????????????????? | | ??????????## #######????????????????????????????? | | ???????????####??????????????????????????????????? | | ?????????????????????????????????????????????????? | | ?????????????????????????????????????????????????? | | ?????????????????????????????????????????????????? | | ?????????????????????????????????????????????????? | | ?????????????????????????????????????????????????? | | ?????????????????????????????????????????????????? | +----------------------------------------------------+ Best States ------------- Heat Dissipation 39 Energy Generation 10 Energy Capacity 250 Matter Stores 300 Matter Capacity 300 Sight Range 16 Terrain Scan Density 10 Evasion (%) 44 Item Schematics ----------------- None Robot Schematics ------------------ None Fabricated ------------ Nothing Repaired ---------- Nothing Studied --------- None Alien Tech Used ----------------- None Achievements -------------- None Challenges ------------ None Game ------ Seed IntegratedFissionTrap Manual? 0 Play Time 00:10:47 Cumulative 145.6 hours Start 2026.09.12 @ 16:48:15 End 2026.09.12 @ 17:00:14 Sessions 1 Manual Loads 0 Difficulty Rogue Special Mode None Game No. 67 Rogue 67 Adventurer 0 Explorer 0 Win Type - Total 2 Types 2/0/0/0/0/0/0/0/0/0 Lore% 18 Gallery% 50 Achievement% 26 Wizard Run 0 Options --------- Layout 1 ASCII 0 Keyboard 0 Movement Arrows Keybinds 0 Fullscreen 1 Font 24/Smallcaps Map View 50x35 Zoom Use 0% Tactical HUD 1 Map Filters NONE Filters NONE Steam 1 RUN: d8eb03a4-bee2-44f8-9951-919d2f151b57